bitfinex-derivatives/quotes_ETHF0:USTF0_20250330
["timestamp","ask_amount","ask_price","bid_price","bid_amount"]
[1743362382448,1.10034,1818.3,1818.2,0.5504]
[1743362382761,1.1004,1818.2,1817.9,1.10054]
[1743362383051,3.2078,1818.1,1817.9,2.0193]
[1743362383352,4.30815,1818.3,1818.2,2.0735]
[1743362383557,5.77045,1818.3,1818.2,2.0735]
[1743362384155,5.77045,1818.3,1818.1,2.05601027]
[1743362384457,4.30815,1818.3,1818.2,3.4816]
[1743362384857,3.2078,1818.3,1818.2,4.582]
[1743362385058,0.0082352,1818.4,1818.2,4.582]
[1743362385260,3.2160352,1818.4,1818.3,4.9297]
[1743362386767,3.2160352,1818.4,1818.3,6.03004]
[1743362387162,3.2078,1818.8,1818.3,12.3555835]
[1743362387359,1.09998,1818.9,1818.8,2.0735]
[1743362387770,3.905,1819.1,1818.8,2.0735]
[1743362387966,0.6972,1819.1,1818.9,2.0735]
[1743362388161,3.905,1819.1,1818.7,2.54667]
[1743362388367,1.09998,1819.0,1818.8,2.0817352]
[1743362388567,1.09998,1819.0,1818.8,3.4677352]
[1743362388769,1.09998,1818.9,1818.8,1.3942352]
[1743362389469,1.09996,1819.0,1818.8,2.4942652]
[1743362389674,1.09996,1819.0,1818.9,1.3775]
[1743362390563,3.8512352,1819.2,1818.9,1.3775]
[1743362390564,0.0082352,1819.2,1818.9,3.451]
[1743362390763,0.0082352,1819.2,1818.8,0.0082352]
[1743362390764,1.09989,1819.1,1819.0,3.451]
[1743362390971,1.09992,1819.0,1818.9,2.0735]
[1743362391263,2.49432,1819.0,1818.9,2.0735]
[1743362391470,2.49432,1819.0,1818.8,2.4857652]
[1743362391671,2.49432,1819.0,1818.9,2.0735]
[1743362392169,2.49432,1819.0,1818.8,2.4857652]
[1743362392371,2.49432,1819.0,1818.9,2.0735]
[1743362392567,1.81182,1819.0,1818.9,2.0735]
[1743362392766,0.7119,1819.0,1818.9,1.4115]
[1743362392970,1.81182,1819.0,1818.9,1.4115]
[1743362395672,1.09992,1819.0,1818.9,1.4115]
[1743362396171,3.2078,1819.1,1818.9,4.58497]
[1743362396172,4.3077,1819.1,1818.9,4.58497]
[1743362396372,3.2078,1819.1,1818.9,3.485]
[1743362396572,1.09992,1819.0,1818.9,3.485]
[1743362399675,3.2078,1819.1,1818.9,3.485]
[1743362399978,1.09992,1819.0,1818.9,3.485]
[1743362400670,1.1080552,1819.2,1819.0,1.09992]
[1743362400867,1.1080552,1819.2,1819.0,5.41842]
[1743362401068,1.1080552,1819.2,1819.1,0.7209]
[1743362401267,1.1080552,1819.2,1819.1,2.2101]
[1743362401864,1.1080552,1819.2,1819.1,5.38346]
[1743362401865,0.0082352,1819.2,1819.1,5.38346]
[1743362403191,0.0082352,1819.2,1818.5,3.30088]
[1743362403192,1.10022,1818.5,1818.2,1.19604156]
[1743362403483,5.78358,1818.4,1818.3,3.5444]
[1743362403684,4.6833,1818.4,1818.3,3.5444]
[1743362403886,1.4755,1818.4,1818.3,3.5444]
[1743362404083,1.4755,1818.4,1818.3,4.64474]
[1743362404275,7.7534,1818.8,1818.3,3.5444]
[1743362404483,1.4355,1818.6,1818.4,1.4152]
[1743362404789,1.4355,1818.6,1818.5,0.7423]
[1743362404982,1.4355,1818.6,1818.5,2.8158]
[1743362405184,5.01148,1818.8,1818.5,5.33122]
[1743362405488,1.4355,1818.7,1818.6,4.2327]
[1743362406086,1.4355,1818.7,1818.6,5.33286]
[1743362406385,3.2078,1819.0,1818.6,4.2327]
[1743362406585,5.74325,1819.0,1818.9,2.0735]
[1743362406784,4.30775,1819.0,1818.9,2.0735]
[1743362407785,4.30775,1819.0,1818.9,3.4486]
[1743362411183,4.30775,1819.0,1818.8,1.84233]
[1743362411384,4.30775,1819.0,1818.9,2.0735]
[1743362411586,5.03235,1819.0,1818.9,2.0735]
[1743362411785,5.03235,1819.0,1818.8,1.84233]
[1743362412083,5.03235,1819.0,1818.9,2.0735]
[1743362412590,5.03235,1819.0,1818.8,1.84233]
[1743362412791,5.03235,1819.0,1818.8,3.91583]
[1743362413392,4.30775,1819.0,1818.9,2.0735]
[1743362413587,4.30775,1819.0,1818.9,4.66648]
[1743362413979,4.30775,1819.0,1818.9,3.5665]
[1743362414480,3.2078,1819.0,1818.6,0.744]
[1743362414683,4.30789,1818.8,1818.6,6.11345]
[1743362414882,1.1001,1818.7,1818.6,6.11346]
[1743362415191,4.30788,1818.8,1818.6,6.11346]
[1743362415697,1.10008,1818.8,1818.7,2.0735]
[1743362415887,1.10008,1818.8,1818.7,3.5665]
[1743362416093,1.10008,1818.8,1818.7,1.493]
[1743362416693,0.7505,1818.9,1818.7,3.5665]
[1743362416892,1.10004,1818.8,1818.7,3.5665]
[1743362418890,1.10022,1818.5,1818.4,3.2078]
[1743362419094,1.10018,1818.6,1818.5,2.0735]
[1743362419299,1.10018,1818.6,1818.5,4.2804]
[1743362419483,2.54064,1818.7,1818.5,4.2804]
[1743362419793,1.1001,1818.7,1818.6,2.0735]
[1743362419986,1.1001,1818.7,1818.6,4.1782]
[1743362421897,4.30788,1818.8,1818.6,5.27833]
[1743362422097,1.1,1818.9,1818.7,3.1736]
[1743362422290,1.10004,1818.8,1818.7,1.3924]
[1743362422691,1.10004,1818.8,1818.7,3.4659]
[1743362424899,1.10004,1818.8,1818.7,4.566]
[1743362425200,1.10004,1818.8,1818.7,3.4659]
[1743362426403,1.10004,1818.8,1818.7,1.3924]
[1743362426801,5.7078,1818.8,1818.2,4.3078]
[1743362426995,1.10022,1818.5,1818.4,2.0735]
[1743362427200,4.308,1818.6,1818.5,2.0735]
[1743362427400,4.308,1818.6,1818.5,3.456]
[1743362427701,3.2078,1818.6,1818.5,4.55622]
[1743362427901,1.10012,1818.7,1818.5,4.55622]
[1743362428200,1.10012,1818.7,1818.6,4.1506]
[1743362428401,1.10012,1818.7,1818.6,4.8434]
[1743362429400,3.9451,1818.9,1818.8,1.10004]
[1743362429401,4.30781,1818.9,1818.8,1.10004]
[1743362429597,3.2078,1818.9,1818.8,3.17354]
[1743362431497,1.09987,1819.1,1818.9,1.09998]
[1743362431697,1.09987,1819.1,1819.0,0.7159]
[1743362432102,3.2160352,1819.2,1819.1,1.09986]
[1743362432400,0.0082352,1819.2,1819.1,3.17336]
[1743362432602,0.0082352,1819.2,1819.1,4.62266]
[1743362432805,4.30733,1819.7,1819.1,14.40424175]
[1743362433101,1.09956,1819.6,1819.5,2.0735]
[1743362433298,4.30733,1819.7,1819.5,2.7894]
[1743362433502,4.30733,1819.7,1819.5,4.60792]
[1743362433903,3.2078,1819.7,1819.5,4.60792]
[1743362434097,4.30732,1819.7,1819.5,3.5083]
[1743362434297,4.30734,1819.7,1819.5,3.5083]
[1743362435598,1.09956,1819.6,1819.5,3.5083]
[1743362436400,4.30734,1819.7,1819.5,3.5083]
[1743362437098,1.09956,1819.6,1819.5,3.5083]
[1743362437704,1.09956,1819.6,1819.5,2.0735]
[1743362438502,1.09956,1819.6,1818.5,1.10017]
[1743362438503,1.10009,1818.8,1818.5,1.10017]
[1743362438799,1.1001,1818.7,1818.6,1.4506]
[1743362438998,1.10008,1818.8,1818.6,1.4506]
[1743362439407,4.30782,1818.9,1818.6,2.55076]
[1743362439600,1.10005,1818.8,1818.6,2.55076]
[1743362439902,1.10005,1818.8,1818.6,1.4506]
[1743362440106,1.10007,1818.8,1818.6,1.4506]
[1743362440707,1.1001,1818.7,1818.6,1.4506]
[1743362441100,1.10008,1818.8,1818.6,1.4506]
[1743362441808,4.3160552,1818.9,1818.6,2.55074]
[1743362442608,1.10006,1818.8,1818.6,1.4506]
[1743362442809,1.10007,1818.8,1818.6,2.55073]
[1743362443003,3.2160352,1818.9,1818.6,1.4506]
[1743362443205,1.10004,1818.8,1818.7,7.15485541]
[1743362443406,1.10028,1818.4,1818.3,0.753]
[1743362443704,3.2078,1818.5,1818.2,3.9599]
[1743362444010,2.54454,1818.3,1818.2,3.9599]
[1743362444404,2.54454,1818.3,1818.2,0.7521]
[1743362445212,1.1004,1818.2,1818.1,0.753]
[1743362445403,2.5446,1818.2,1818.1,0.753]
[1743362448312,2.75116,1818.1,1817.2,1.0091869]
[1743362448502,1.4878,1818.0,1817.3,3.9303]
[1743362448708,0.0082352,1817.8,1817.6,1.10071]
[1743362449009,1.10076,1817.7,1817.3,5.03121]
[1743362449210,1.4878,1817.6,1817.3,4.6678]
[1743362449409,1.4878,1817.6,1817.4,7.2955012]
[1743362449604,1.4878,1817.6,1817.4,8.3963812]
[1743362450010,1.4878,1817.6,1817.5,1.10083]
[1743362450610,0.0082352,1817.8,1817.7,1.1007]
[1743362451104,1.1089152,1817.8,1817.5,1.10079]
[1743362451510,1.4043,1817.7,1817.5,1.10079]
[1743362452415,1.4043,1817.7,1817.6,1.10077]
[1743362452612,0.0082352,1817.8,1817.4,3.2078]
[1743362452817,0.0082352,1817.8,1817.6,1.10072]
[1743362453009,0.0082352,1817.8,1817.7,2.7855]
[1743362453314,0.0082352,1817.8,1817.7,3.8862]
[1743362455320,3.2160352,1817.8,1817.3,3.2078]
[1743362455512,2.52011,1817.7,1817.6,0.7093]
[1743362455715,1.4194,1817.7,1817.6,0.7093]
[1743362456118,2.5201,1817.7,1817.6,0.7093]
[1743362458627,1.4194,1817.7,1817.6,0.7093]
[1743362459026,1.4194,1817.7,1817.6,2.073]
[1743362459214,1.4194,1817.7,1817.6,3.17377]
[1743362459420,1.4194,1817.7,1817.6,2.073]
[1743362460125,3.9194,1817.7,1816.8,3.30354235]
[1743362460422,1.10098,1817.3,1817.0,1.1011]
[1743362460631,1.10098,1817.3,1816.8,3.9637]
[1743362460632,1.10093,1817.4,1817.1,1.79435]
[1743362460824,1.4258,1817.2,1817.1,1.79435]
[1743362461222,1.4258,1817.2,1817.1,0.6933]
[1743362461422,1.4258,1817.2,1817.1,1.79437]
[1743362461825,4.30866,1817.5,1817.2,1.10095]
[1743362462127,0.0082352,1817.8,1817.6,1.10074]
[1743362462329,2.5393952,1817.8,1817.4,3.2078]
[1743362462629,5.73904,1817.7,1817.4,1.10086]
[1743362462823,1.4305,1817.6,1817.5,0.7001]
[1743362463531,1.4305,1817.6,1817.5,1.80093]
[1743362464428,0.0082352,1817.8,1817.6,1.10073]
[1743362464727,0.0082352,1817.8,1817.7,1.1007]
[1743362465123,1.4387352,1817.8,1817.7,1.1007]
[1743362465323,0.0082352,1817.8,1817.7,1.8562]
[1743362466629,0.0082352,1817.8,1817.7,2.4066]
[1743362468540,1.101,1817.3,1817.0,4.30891]
[1743362468836,2.48156,1817.2,1817.0,3.7582]
[1743362469033,1.3805,1817.1,1817.0,4.85929]
[1743362469736,3.2078,1817.5,1817.0,4.85928]
[1743362470038,1.3805,1817.2,1817.0,4.85928]
[1743362470241,1.3805,1817.2,1817.1,1.10107]
[1743362471232,1.3805,1817.2,1817.0,3.7582]
[1743362471733,1.3805,1817.2,1817.1,1.10107]
[1743362472644,3.8988,1817.7,1817.5,1.10082]
[1743362472937,1.4318,1817.6,1817.4,1.10086]
[1743362473332,1.4318,1817.6,1817.5,2.60333]
[1743362473533,1.4318,1817.6,1817.5,1.5025]
[1743362473845,1.4318,1817.6,1817.5,2.60333]
[1743362478645,1.1089252,1817.8,1817.6,1.10075]
[1743362478845,2.5574252,1817.8,1817.6,3.89775]
[1743362479249,1.1089252,1817.8,1817.7,1.3729]
[1743362479447,0.0082352,1817.8,1817.7,1.3729]
[1743362479642,0.0082352,1817.8,1817.7,2.4736]
[1743362480347,4.30819,1818.3,1818.1,1.10046]
[1743362480743,3.2078,1818.3,1818.1,1.10046]
[1743362480950,1.79072,1818.4,1818.1,1.10042]
[1743362481243,1.79072,1818.4,1818.2,3.2215]
[1743362482145,0.6904,1818.4,1818.2,3.2215]
[1743362482342,1.79068,1818.4,1818.2,3.2215]
[1743362482544,0.0082352,1818.5,1818.3,1.10031]
[1743362482744,0.0082352,1818.5,1818.3,2.47441]
[1743362482944,1.1084652,1818.5,1818.3,2.47441]
[1743362483146,0.0082352,1818.5,1818.4,1.10028]
[1743362483344,0.0082352,1818.5,1818.4,2.60988]
[1743362484743,0.0082352,1818.5,1818.4,6.54888]
[1743362484941,0.0082352,1818.5,1818.4,9.75668]
[1743362485147,0.0082352,1818.5,1818.4,16.9438177]
[1743362486755,0.0082352,1818.5,1818.4,17.4942177]
[1743362490451,1.79036,1819.0,1818.7,1.10004]
[1743362490657,1.79036,1819.0,1818.8,1.3813]
[1743362490857,1.79036,1819.0,1818.7,1.10004]
[1743362491653,1.7985952,1819.0,1818.8,1.10004]
[1743362493151,1.4506,1818.9,1818.8,1.10004]
[1743362496655,1.4506,1818.9,1818.8,2.59224]
[1743362497860,0.0082352,1819.0,1818.9,1.09998]
[1743362498161,1.4170352,1819.0,1818.9,1.09998]
[1743362505560,4.6248352,1819.0,1818.7,0.7216]
[1743362505760,1.10004,1818.8,1818.6,8.86234]
[1743362506264,1.384,1818.7,1818.6,8.86234]
[1743362507257,1.384,1818.7,1818.6,10.26594]
[1743362510266,0.0082352,1819.0,1818.9,1.09998]
[1743362510459,1.4484352,1819.0,1818.9,1.09998]
[1743362511362,1.4484352,1819.0,1818.9,2.58588]
[1743362513463,3.9012,1819.4,1819.2,1.09977]
[1743362514367,3.9012,1819.4,1819.1,0.6973]
[1743362514562,3.9012,1819.4,1819.3,1.09974]
[1743362514761,4.6278352,1819.4,1819.3,1.09974]
[1743362515161,1.4200352,1819.4,1819.3,1.09974]
[1743362518666,1.4200352,1819.4,1819.3,2.46734]
[1743362522475,1.0998,1819.2,1819.1,0.0082352]
[1743362522773,8.5782352,1819.4,1819.1,1.1080752]
[1743362522968,1.4326,1819.3,1819.1,3.2034752]
[1743362523171,1.4326,1819.3,1819.2,1.0998]
[1743362525370,1.4326,1819.3,1819.2,2.4746]
[1743362529773,0.0082352,1819.4,1819.3,1.09974]
[1743362529974,0.0082352,1819.4,1819.3,2.53424]
[1743362536373,0.0082352,1819.4,1819.3,3.08464]
[1743362537889,1.1079152,1819.4,1819.2,1.09974]
[1743362538075,1.4158,1819.3,1819.2,1.09974]
[1743362541995,1.4158,1819.3,1819.2,2.51794]
[1743362542792,1.4158,1819.3,1819.2,1.09974]
[1743362544697,1.4158,1819.3,1819.2,2.56994]
[1743362546389,0.0082352,1819.4,1819.2,2.56994]
[1743362546599,0.8578,1819.7,1819.3,1.4702]
[1743362546600,5.02852,1819.7,1819.3,1.4702]
[1743362546786,5.02852,1819.7,1819.4,0.6983]
[1743362546991,5.02852,1819.7,1819.5,1.4702]
[1743362547994,5.02852,1819.7,1819.5,2.56981]
[1743362548193,4.30732,1819.7,1819.5,2.56981]
[1743362548394,4.30732,1819.7,1819.6,1.3671]
[1743362549103,4.30732,1819.7,1819.6,2.46666]
[1743362549703,5.82012,1819.7,1819.6,2.46666]
[1743362549996,1.5128,1819.7,1819.6,2.46666]
[1743362554593,2.61229,1819.7,1819.6,1.3671]
[1743362555201,1.5128,1819.7,1819.6,1.3671]
[1743362555395,1.5128,1819.7,1819.6,2.46666]
[1743362560808,0.0082352,1819.8,1819.7,1.09949]
[1743362561011,0.0082352,1819.8,1819.7,1.79249]
[1743362563012,1.4302352,1819.8,1819.7,1.79249]
[1743362566715,0.0082352,1819.8,1819.7,1.79249]
[1743362568111,4.30709,1820.1,1819.9,1.09937]
[1743362568311,5.67929,1820.1,1820.0,2.9385]
[1743362568513,4.30709,1820.1,1820.0,2.9385]
[1743362569212,3.2078,1820.1,1819.5,3.2078]
[1743362569414,3.2078,1819.9,1819.8,1.09943]
[1743362569614,3.2078,1819.9,1819.6,6.0308]
[1743362569615,1.09935,1820.0,1819.7,1.4862]
[1743362569916,1.09935,1820.0,1819.9,1.09937]
[1743362570715,4.3071,1820.1,1819.9,1.09937]
[1743362571310,1.09931,1820.0,1819.9,1.09937]
[1743362572311,1.09938,1819.9,1819.8,1.09939]
[1743362572523,3.2078,1820.1,1819.8,1.09943]
[1743362572812,4.3072,1819.9,1819.7,1.4862]
[1743362573209,4.3072,1819.9,1819.8,1.09942]
[1743362573811,3.2078,1819.9,1819.8,1.09942]
[1743362575112,1.09935,1820.0,1819.9,1.09937]
[1743362575507,1.09939,1819.9,1819.7,1.4862]
[1743362576520,4.30719,1819.9,1819.7,2.58564]
[1743362576713,1.09943,1819.8,1819.7,2.58564]
[1743362577110,1.09943,1819.8,1819.7,1.4862]
[1743362577316,1.09943,1819.8,1819.7,2.58569]
[1743362577518,1.09943,1819.8,1819.7,1.4862]
[1743362577719,1.09943,1819.8,1819.7,2.58569]
[1743362578022,3.2078,1819.9,1819.7,2.58569]
[1743362578524,1.09943,1819.8,1819.7,2.58569]
[1743362579819,1.09943,1819.8,1819.7,1.4862]
[1743362581215,1.09962,1819.5,1819.4,1.09964]
[1743362581416,4.30742,1819.5,1819.4,2.9281]
[1743362581710,3.2078,1819.5,1819.4,4.02778]
[1743362582116,4.30742,1819.5,1819.4,4.02778]
[1743362582522,4.30742,1819.5,1819.4,2.9281]
[1743362582715,1.09968,1819.4,1819.2,1.09974]
[1743362583023,1.09968,1819.4,1819.3,2.9289]
[1743362583221,2.58528,1819.4,1819.3,2.9289]
[1743362585823,1.0998,1819.2,1819.1,0.0082352]
[1743362586123,1.0998,1819.2,1819.1,1.4301352]
[1743362586518,2.5406,1819.2,1819.1,1.4301352]
[1743362586724,2.5406,1819.2,1819.1,0.0082352]
[1743362587023,6.3776,1819.2,1819.1,0.0082352]
[1743362594129,1.09998,1818.9,1818.8,0.7768]
[1743362594326,4.30778,1818.9,1818.8,0.7768]
[1743362594727,3.2078,1818.9,1818.3,51.3324]
[1743362594919,1.10016,1818.6,1818.5,2.129]
[1743362595229,4.30796,1818.6,1818.5,2.129]
[1743362595731,5.67756,1818.6,1818.5,2.129]
[1743362596420,4.30796,1818.6,1818.5,2.129]
[1743362596627,0.0082352,1818.7,1818.6,1.10016]
[1743362596827,0.0082352,1818.7,1818.6,3.23756]
[1743362597726,1.1083352,1818.7,1818.6,2.1374]
[1743362597929,2.4779352,1818.7,1818.6,2.1374]
[1743362598329,1.3778352,1818.7,1818.6,2.1374]
[1743362598828,2.4779352,1818.7,1818.6,2.1374]
[1743362599923,1.3778352,1818.7,1818.6,2.1374]
[1743362600126,1.3778352,1818.7,1818.6,3.23756]
[1743362602332,2.4779352,1818.7,1818.6,2.1374]
[1743362604833,1.3778352,1818.7,1818.6,3.23756]
[1743362605534,0.0082352,1818.7,1818.6,3.23756]
[1743362605931,2.58414,1819.0,1818.8,1.10001]
[1743362606130,2.58414,1819.0,1818.9,2.1568]
[1743362606330,1.09994,1819.0,1818.9,2.1568]
[1743362606526,1.10016,1818.6,1818.5,7.2028658]
[1743362606839,1.10014,1818.7,1818.5,3.257]
[1743362607035,1.1083752,1818.7,1818.6,1.4326]
[1743362609133,1.1083752,1818.7,1818.6,2.1811]
[1743362616140,1.1083752,1818.7,1818.6,3.28126]
[1743362616332,0.0082352,1818.7,1818.4,0.0082352]
[1743362616535,1.10022,1818.5,1818.4,0.7514352]
[1743362616734,1.10022,1818.5,1818.4,2.2134352]
[1743362618741,23.60895117,1819.3,1819.2,1.0998]
[1743362618935,3.2078,1820.1,1819.5,1.0996]
[1743362619139,1.09938,1819.9,1819.6,5.4259]
[1743362619338,11.92571,1820.3,1819.7,1.4925]
[1743362619538,0.8943,1820.2,1819.7,1.4925]
[1743362619736,1.09939,1819.9,1819.7,1.4925]
[1743362619944,1.09939,1819.9,1819.8,0.0082352]
[1743362621648,1.09939,1819.9,1819.0,2.74973]
[1743362621649,1.09949,1819.7,1819.3,5.01301]
[1743362621834,1.09956,1819.6,1819.4,1.4786]
[1743362622035,1.09953,1819.7,1819.4,1.4786]
[1743362622445,1.09953,1819.7,1819.4,2.57826]
[1743362622744,1.09953,1819.7,1819.4,2.5864952]
[1743362622946,1.09953,1819.7,1819.5,1.4786]
[1743362623247,1.4803,1819.6,1819.5,1.4786]
[1743362624150,1.4803,1819.6,1819.5,4.6864]
[1743362625051,2.57986,1819.6,1819.5,4.6864]
[1743362625641,2.57986,1819.6,1819.5,3.2078]
[1743362627240,2.57986,1819.6,1819.4,2.5658152]
[1743362627241,1.09962,1819.5,1819.4,0.0082352]
[1743362627548,1.09986,1819.1,1819.0,0.7224]
[1743362628051,1.09992,1819.0,1818.9,3.2078]
[1743362628254,1.09992,1819.0,1818.9,4.6657]
[1743362628552,1.0999,1819.1,1818.9,4.6657]
[1743362628749,2.52152,1819.0,1818.9,4.6657]
[1743362629750,1.4216,1819.0,1818.9,5.76568]
[1743362631849,1.09963,1819.5,1819.3,1.09971]
[1743362632151,1.4365,1819.5,1819.4,5.77308]
[1743362632848,0.0082352,1819.6,1819.5,1.09962]
[1743362633043,1.4792352,1819.6,1819.5,2.47872]
[1743362633248,1.4792352,1819.6,1819.5,3.25342]
[1743362633451,0.0082352,1819.6,1819.5,3.25342]
[1743362633855,2.5787952,1819.6,1819.5,2.1538]
[1743362634049,1.4792352,1819.6,1819.5,3.25342]
[1743362635557,2.5787952,1819.6,1819.5,3.25342]
[1743362635757,1.4792352,1819.6,1819.5,3.25342]
[1743362636159,2.5787952,1819.6,1819.5,3.25342]
[1743362636457,1.4792352,1819.6,1819.5,3.25342]
[1743362636651,1.4792352,1819.6,1819.4,3.2078]
[1743362636652,1.09962,1819.5,1819.4,3.2078]
[1743362636853,1.83552,1819.5,1819.4,3.2078]
[1743362637546,1.83552,1819.5,1819.4,4.6724]
[1743362640558,1.09962,1819.5,1819.4,4.6724]
[1743362643552,2.47762,1819.5,1819.4,4.6724]
[1743362646960,1.0998,1819.2,1819.1,0.7141]
[1743362647168,4.9328,1819.2,1819.1,0.7141]
[1743362647663,4.9328,1819.2,1819.1,2.1521]
[1743362647965,6.4107,1819.2,1819.1,2.1521]
[1743362651869,6.4107,1819.2,1819.1,1.438]
[1743362659567,1.09986,1819.1,1819.0,3.2078]
[1743362659761,2.54926,1819.1,1819.0,3.2078]
[1743362659967,1.09992,1819.0,1818.9,2.2399]
[1743362660168,2.54932,1819.0,1818.9,2.2399]
[1743362664671,1.09992,1819.0,1818.9,2.2399]
[1743362666667,2.51642,1819.0,1818.9,2.2399]
[1743362667573,1.09998,1818.9,1818.8,3.2160352]
[1743362667877,2.51648,1818.9,1818.8,0.0082352]
[1743362668077,2.51648,1818.9,1818.8,1.3843352]
[1743362671079,1.09998,1818.9,1818.8,1.3843352]
[1743362672585,1.09998,1818.9,1818.8,2.4843752]
[1743362673375,1.09993,1819.0,1818.8,1.3843352]
[1743362673580,1.09993,1819.0,1818.9,3.2078]
[1743362674080,1.09993,1819.0,1818.9,4.7092]
[1743362684692,0.0082352,1819.6,1818.9,18.3165391]
[1743362684900,2.1923,1820.1,1819.5,3.2078]
[1743362685099,2.1923,1820.1,1819.9,1.09936]
[1743362685296,1.09922,1820.2,1820.0,0.7391]
[1743362685495,1.09922,1820.2,1820.0,2.1331]
[1743362685897,2.55392,1820.2,1820.1,1.394]
[1743362686300,1.4547,1820.2,1820.1,1.394]
[1743362686792,25.33753185,1820.3,1820.1,1.394]
[1743362687205,0.00533725,1820.3,1820.1,2.49323]
[1743362687408,0.00533725,1820.3,1820.2,1.4325]
[1743362688602,0.00533725,1820.3,1820.2,2.53169]
[1743362689103,0.00533725,1820.3,1820.2,1.4325]
[1743362689301,0.00533725,1820.3,1820.2,5.73949]
[1743362690107,1.3835,1820.6,1820.2,4.6403]
[1743362690297,1.3835,1820.6,1820.5,1.09901]
[1743362690499,1.3835,1820.6,1820.4,4.30683]
[1743362690693,1.3835,1820.6,1820.5,1.501]
[1743362691105,2.58848,1820.8,1820.5,2.60001]
[1743362691404,2.46199,1820.7,1820.5,1.501]
[1743362691600,2.46199,1820.7,1820.6,1.501]
[1743362692008,3.9181,1821.1,1820.6,5.8077]
[1743362692199,1.09883,1820.8,1820.6,5.8077]
[1743362692400,1.09883,1820.8,1820.7,1.501]
[1743362692702,1.3631,1820.8,1820.7,1.501]
[1743362693202,2.46193,1820.8,1820.7,1.501]
[1743362694104,1.3631,1820.8,1820.7,2.59989]
[1743362694295,2.46193,1820.8,1820.7,1.501]
[1743362694503,3.2078,1821.8,1820.9,2.74693]
[1743362694703,1.4615,1821.7,1821.3,3.2078]
[1743362695009,1.4615,1821.7,1821.5,1.09841]
[1743362695412,1.4615,1821.7,1821.6,1.3814]
[1743362695712,1.4615,1821.7,1821.6,2.47975]
[1743362696104,1.4615,1821.7,1821.6,1.3814]
[1743362696710,2.55979,1821.7,1821.6,1.3814]
[1743362696910,1.4615,1821.7,1821.6,1.3814]
[1743362698213,1.09825,1821.8,1821.6,1.3814]
[1743362698408,1.09827,1821.8,1821.6,1.3814]
[1743362698608,2.46319,1821.7,1821.6,1.3814]
[1743362699007,1.3649,1821.7,1821.6,1.3814]
[1743362699806,2.46319,1821.7,1821.6,1.3814]
[1743362701318,1.3649,1821.7,1821.6,1.3814]
[1743362701510,2.46319,1821.7,1821.6,1.3814]
[1743362701709,1.3649,1821.7,1821.6,1.3814]
[1743362702111,2.46319,1821.7,1821.6,1.3814]
[1743362704317,1.09835,1821.6,1821.5,3.2078]
[1743362704511,1.09853,1821.3,1821.2,0.0082352]
[1743362705110,2.58783,1821.3,1821.2,0.0082352]
[1743362706626,1.09853,1821.3,1821.2,0.0082352]
[1743362706817,1.09853,1821.3,1821.2,1.4473352]
[1743362707019,2.60493,1821.3,1821.2,1.4473352]
[1743362707822,1.09853,1821.3,1821.2,1.4473352]
[1743362708121,1.84971,1821.4,1821.2,1.4473352]
[1743362708323,3.32991,1821.4,1821.2,1.4473352]
[1743362708522,1.09853,1821.3,1821.2,1.4473352]
[1743362708720,2.57873,1821.3,1821.2,1.4473352]
[1743362712522,2.57873,1821.3,1821.2,0.0082352]
[1743362713122,3.28633,1821.3,1821.2,0.0082352]
[1743362713518,3.28633,1821.3,1821.2,1.4300352]
[1743362715519,2.74504,1822.2,1821.2,1.4300352]
[1743362715829,2.48796,1821.8,1821.6,3.2078]
[1743362716125,1.09819,1821.9,1821.7,1.4454]
[1743362716321,2.48789,1821.9,1821.7,1.4454]
[1743362716522,1.3897,1821.9,1821.7,2.54369]
[1743362717125,1.3897,1821.9,1821.7,3.30539]
[1743362717330,1.3897,1821.9,1821.8,3.2078]
[1743362718027,1.86345,1822.0,1821.8,3.2078]
[1743362718230,3.32485,1822.0,1821.9,1.4612]
[1743362719227,2.2267,1822.0,1821.9,1.4612]
[1743362720632,2.2267,1822.0,1821.9,2.55937]
[1743362720820,2.2267,1822.0,1821.9,1.4612]
[1743362721025,2.2267,1822.0,1821.9,2.55937]
[1743362721530,2.2267,1822.0,1821.9,1.4612]
[1743362721732,3.32481,1822.0,1821.9,1.4612]
[1743362722130,2.2267,1822.0,1821.9,1.4612]
[1743362722333,3.32481,1822.0,1821.9,1.4612]
[1743362724331,3.32481,1822.0,1821.8,3.2078]
[1743362724535,3.32481,1822.0,1821.8,4.6619]
[1743362724737,3.32481,1822.0,1821.9,1.4541]
[1743362733841,1.09817,1821.9,1821.8,3.2078]
[1743362734145,1.09846,1821.5,1821.4,3.2078]
[1743362734448,1.09846,1821.5,1821.4,4.6114]
[1743362735347,1.09846,1821.5,1821.4,3.2078]
[1743362735546,2.59716,1821.5,1821.4,3.2078]
[1743362739747,3.821,1821.7,1821.4,3.2078]
[1743362739945,1.09835,1821.6,1821.5,2.2027]
[1743362740146,1.09835,1821.6,1821.5,0.7198]
[1743362740647,2.50765,1821.6,1821.5,0.7198]
[1743362743451,1.09841,1821.5,1821.4,3.2078]
[1743362743653,2.56401,1821.5,1821.4,3.2078]
[1743362747341,1.09853,1821.3,1821.2,0.0082352]
[1743362747959,2.54633,1821.3,1821.2,0.0082352]
[1743362756752,2.74652,1821.2,1820.8,0.7176]
[1743362756951,1.09877,1820.9,1820.8,2.1325]
[1743362757953,2.46177,1820.9,1820.8,2.1325]
[1743362758552,2.46177,1820.9,1820.8,1.4149]
[1743362758756,1.09883,1820.8,1820.7,3.2160352]
[1743362758958,6.28183,1820.8,1820.7,3.2160352]
[1743362759650,6.28183,1820.8,1820.7,0.0082352]